fUST/lending_fUST_20251028
["ID","MTS","AMOUNT","RATE_DAILY","PERIOD"]
[392531161,1761615695380,-10000.01,0.00018,2]
[392531162,1761615695428,-10000.01,0.00018,2]
[392531163,1761615695574,-10000.01,0.00018,2]
[392531164,1761615706242,-300.0,0.00017839,2]
[392531165,1761615706272,-2489.04363468,0.00017987,2]
[392531166,1761615706389,-4421.92273064,0.00018,2]
[392531167,1761615706427,-10000.01,0.00018,2]
[392531168,1761615706471,-10000.01,0.00018,2]
[392531169,1761615706508,-10000.01,0.00018,2]
[392531170,1761615706544,-10000.01,0.00018,2]
[392531171,1761615706632,-10000.01,0.00018,2]
[392531172,1761615706738,-10000.01,0.00018,2]
[392531173,1761615706871,-10000.01,0.00018,2]
[392531174,1761615717863,-10000.01,0.00018,2]
[392531175,1761615717973,-10000.01,0.00018,2]
[392531176,1761615718107,-10000.01,0.00018,2]
[392531177,1761615718266,-10000.01,0.00018,2]
[392531178,1761615718401,-10000.01,0.00018,2]
[392531179,1761615718516,-10000.01,0.00018,2]
[392531180,1761615719051,-10000.01,0.00018,2]
[392531181,1761615719068,-10000.01,0.00018,2]
[392531182,1761615719086,-10000.01,0.00018,2]
[392531183,1761615719100,-10000.01,0.00018,2]
[392531184,1761615719857,-10000.01,0.00018,2]
[392531185,1761615719998,-10000.01,0.00018,2]
[392531186,1761615723903,-1347.56041833,0.00017919,2]
[392531187,1761615723948,-7304.88916334,0.00018,2]
[392531188,1761615724021,-10000.01,0.00018,2]
[392531189,1761615724107,-10000.01,0.00018,2]
[392531190,1761615727348,-1832.81545145,0.0001784,2]
[392531191,1761615727371,-6334.3790971,0.0001784,2]
[392531192,1761615727566,-10000.01,0.00018,2]
[392531193,1761615727680,-10000.01,0.00018,2]
[392531194,1761615727788,-10000.01,0.00018,2]
[392531195,1761615728155,-10000.01,0.00018,2]
[392531196,1761615728169,-10000.01,0.00018,2]
[392531197,1761615728202,-10000.01,0.00018,2]
[392531198,1761615728275,-10000.01,0.00018,2]
[392531199,1761615728496,-10000.01,0.00018,2]
[392531200,1761615728563,-10000.01,0.00018,2]
[392531201,1761615728804,-10000.01,0.00018,2]
[392531202,1761615729945,-10000.01,0.00018,2]
[392531203,1761615730069,-10000.01,0.00018,2]
[392531204,1761615730232,-10000.01,0.00018,2]
[392531205,1761615730342,-10000.01,0.00018,2]
[392531206,1761615733093,-10000.01,0.00018,2]
[392531207,1761615733498,-10000.01,0.00018,2]
[392531208,1761615733630,-10000.01,0.00018,2]
[392531209,1761615733693,-10000.01,0.00018,2]
[392531210,1761615733809,-10000.01,0.00018,2]
[392531211,1761615733935,-10000.01,0.00018,2]
[392531212,1761615735972,-1987.4082761,0.00017997,2]
[392531213,1761615736005,-6025.1934478,0.00018,2]
[392531214,1761615736065,-10000.01,0.00018,2]
[392531215,1761615736196,-10000.01,0.00018,2]
[392531216,1761615736307,-10000.01,0.00018,2]
[392531217,1761615736473,-10000.01,0.00018,2]
[392531218,1761615738996,-10000.01,0.00018,2]
[392531219,1761615739126,-10000.01,0.00018,2]
[392531220,1761615739284,-10000.01,0.00018,2]
[392531221,1761615739997,-10000.01,0.00018,2]
[392531222,1761615740012,-10000.01,0.00018,2]
[392531223,1761615740030,-10000.01,0.00018,2]
[392531224,1761615742117,-300.0,0.00017839,2]
[392531225,1761615742152,-9400.01,0.00018,2]
[392531226,1761615745012,-10000.01,0.00018,2]
[392531227,1761615745134,-10000.01,0.00018,2]
[392531228,1761615745283,-10000.01,0.00018,2]
[392531229,1761615745416,-10000.01,0.00018,2]
[392531230,1761615745492,-10000.01,0.00018,2]
[392531231,1761615748035,-10000.01,0.00018,2]
[392531232,1761615748208,-10000.01,0.00018,2]
[392531233,1761615751239,-300.0,0.00017839,2]
[392531234,1761615751278,-9400.01,0.00018,2]
[392531235,1761615751483,-10000.01,0.00018,2]
[392531236,1761615754248,-10000.01,0.00018,2]
[392531237,1761615754742,-10000.01,0.00018,2]
[392531238,1761615754856,-10000.01,0.00018,2]
[392531239,1761615754898,-10000.01,0.00018,2]
[392531240,1761615754913,-10000.01,0.00018,2]
[392531241,1761615755011,-1104.13971386,0.00018,2]
[392531242,1761615755085,-7791.73057228,0.00018,2]
[392531243,1761615755130,-300.0,0.00018019,2]
[392531244,1761615755164,-9400.01,0.0001802,2]
[392531245,1761615760147,-1730.3286949,0.0001802,2]
[392531246,1761615760170,-6539.3526102,0.0001802,2]
[392531247,1761615760276,-2489.04363468,0.00018028,2]
[392531248,1761615760310,-2489.04363468,0.00018069,2]
[392531249,1761615760980,-43.83546128,0.00018075,2]
[392531250,1761615761025,-359.74071622,0.00018075,2]
[392531251,1761615761061,-151.0,0.00018079,2]
[392531252,1761615761097,-151.0,0.00018079,2]
[392531253,1761615761134,-151.0,0.00018079,2]
[392531254,1761615761171,-151.0,0.00018079,2]
[392531255,1761615761211,-151.0,0.00018079,2]
[392531256,1761615761248,-151.0,0.00018079,2]
[392531257,1761615761283,-151.0,0.00018079,2]
[392531258,1761615761319,-151.0,0.00018079,2]
[392531259,1761615761362,-151.0,0.00018079,2]
[392531260,1761615761401,-151.0,0.00018079,2]
[392531261,1761615761440,-198.81384698,0.00018079,2]
[392531262,1761615761476,-1001.54100377,0.00018086,2]
[392531263,1761615761503,-500.0,0.00018086,2]
[392531264,1761615761529,-500.0,0.00018086,2]
[392531265,1761615761557,-500.0,0.00018086,2]
[392531266,1761615761587,-359.81886606,0.00018086,2]
[392531267,1761615761631,-140.18113394,0.00018086,2]
[392531268,1761615762026,-500.0,0.00018086,2]
[392531269,1761615762055,-500.0,0.00018086,2]
[392531270,1761615762082,-500.0,0.00018086,2]
[392531271,1761615762112,-545.76735824,0.00018086,2]
[392531272,1761615762144,-500.0,0.00018086,2]
[392531273,1761615762174,-500.0,0.00018086,2]
[392531274,1761615762202,-500.0,0.00018086,2]
[392531275,1761615762231,-500.0,0.00018086,2]
[392531276,1761615762261,-500.0,0.00018086,2]
[392531277,1761615762290,-128.11301564,0.00018086,2]
[392531278,1761615762975,-57.83547654,0.00018027,2]
[392531279,1761615762993,-500.0,0.00018027,2]
[392531280,1761615763150,-44.16452346,0.00018027,2]
[392531281,1761615763181,-371.88698436,0.00018086,2]
[392531282,1761615763210,-500.0,0.00018086,2]
[392531283,1761615763239,-500.0,0.00018086,2]
[392531284,1761615763267,-500.0,0.00018086,2]
[392531285,1761615763296,-500.0,0.00018086,2]
[392531286,1761615763323,-395.04377,0.00018086,2]
[392531287,1761615763355,-393.3562014,0.00018086,2]
[392531288,1761615763387,-500.0,0.00018086,2]
[392531289,1761615763417,-500.0,0.00018086,2]
[392531290,1761615763446,-500.0,0.00018086,2]
[392531291,1761615763476,-91.10704156,0.00018086,2]
[392531292,1761615763578,-408.89295844,0.00018086,2]
[392531293,1761615763606,-500.0,0.00018086,2]
[392531294,1761615763637,-500.0,0.00018086,2]
[392531295,1761615763667,-500.0,0.00018086,2]
[392531296,1761615763701,-500.0,0.00018086,2]
[392531297,1761615763732,-500.0,0.00018086,2]
[392531298,1761615763764,-500.0,0.00018086,2]
[392531299,1761615763791,-250.67990521,0.00018086,2]
[392531300,1761615763819,-500.0,0.00018086,2]
[392531301,1761615763847,-500.0,0.00018086,2]
[392531302,1761615763875,-180.8642727,0.00018086,2]
[392531303,1761615764019,-319.1357273,0.00018086,2]
[392531304,1761615764046,-500.0,0.00018086,2]
[392531305,1761615764076,-500.0,0.00018086,2]
[392531306,1761615764105,-500.0,0.00018086,2]
[392531307,1761615764135,-500.0,0.00018086,2]
[392531308,1761615764164,-500.0,0.00018086,2]
[392531309,1761615764192,-500.0,0.00018086,2]
[392531310,1761615764221,-500.0,0.00018086,2]
[392531311,1761615764250,-500.0,0.00018086,2]
[392531312,1761615764279,-500.0,0.00018086,2]
[392531313,1761615764574,-500.0,0.00018086,2]
[392531314,1761615764605,-500.0,0.00018086,2]
[392531315,1761615764634,-250.2050724,0.00018086,2]
[392531316,1761615764663,-500.0,0.00018086,2]
[392531317,1761615764692,-500.0,0.00018086,2]
[392531318,1761615764723,-500.0,0.00018086,2]
[392531319,1761615764750,-500.0,0.00018086,2]
[392531320,1761615764779,-500.0,0.00018086,2]
[392531321,1761615764807,-500.0,0.00018086,2]
[392531322,1761615764838,-500.0,0.00018086,2]
[392531323,1761615764999,-500.0,0.00018086,2]
[392531324,1761615765027,-500.0,0.00018086,2]
[392531325,1761615765057,-500.0,0.00018086,2]
[392531326,1761615765086,-500.0,0.00018086,2]
[392531327,1761615765114,-500.0,0.00018086,2]
[392531328,1761615765142,-500.0,0.00018086,2]
[392531329,1761615765170,-500.0,0.00018086,2]
[392531330,1761615765198,-500.0,0.00018086,2]
[392531331,1761615765228,-500.0,0.00018086,2]
[392531332,1761615765259,-162.02485609,0.00018086,2]
[392531333,1761615765287,-175.96028782,0.00018086,2]
[392531334,1761615765429,-324.03971218,0.00018086,2]
[392531335,1761615765459,-500.0,0.00018086,2]
[392531336,1761615765486,-500.0,0.00018086,2]
[392531337,1761615765515,-500.0,0.00018086,2]
[392531338,1761615765541,-500.0,0.00018086,2]
[392531339,1761615765569,-594.30697899,0.00018086,2]
[392531340,1761615765597,-500.0,0.00018086,2]
[392531341,1761615765625,-500.0,0.00018086,2]
[392531342,1761615765653,-500.0,0.00018086,2]
[392531343,1761615765681,-500.0,0.00018086,2]
[392531344,1761615766735,-347.70678177,0.00017894,2]
[392531345,1761615766744,-82.96241853,0.00018086,2]
[392531346,1761615766758,-417.03758147,0.00018086,2]
[392531347,1761615766768,-82.96241853,0.00018086,2]
[392531348,1761615766782,-417.03758147,0.00018086,2]
[392531349,1761615766790,-82.96241853,0.00018086,2]
[392531350,1761615766803,-417.03758147,0.00018086,2]
[392531351,1761615766953,-82.96241853,0.00018086,2]
[392531352,1761615766987,-163.31661766,0.00018086,2]
[392531353,1761615892996,-999.0,0.00017034,2]
[392531354,1761615936595,300.0,0.00017,2]
[392531355,1761615947553,300.0,0.00017,2]
[392531356,1761615958348,300.0,0.00017,2]
[392531357,1761615969339,300.0,0.00017,2]
[392531358,1761615987568,-230.60759243,0.00017374,2]
[392531359,1761615992136,-221.65913343,0.00017374,2]
[392531360,1761615992561,300.0,0.00017,2]
[392531361,1761615993067,300.0,0.00017,2]
[392531362,1761615994243,-153.53254037,0.00017374,2]
[392531363,1761615998814,-97.17405675,0.00017374,2]
[392531364,1761615998839,-206.27723001,0.0001755,2]
[392531365,1761616002662,-152.65368445,0.0001755,2]
[392531366,1761616003290,300.0,0.00017,2]
[392531367,1761616003869,300.0,0.00017,2]
[392531368,1761616013546,300.0,0.00017,2]
[392531376,1761616038278,300.0,0.00017,2]
[392531378,1761616048912,300.0,0.00017,2]
[392531379,1761616097516,256.1127459,0.00017,2]
[392531380,1761616104242,3699.999959,0.00030137,120]
[392531381,1761616182016,-168.956402,0.00017352,2]
[392531382,1761616184903,-228.37995655,0.00017352,2]
[392531383,1761616188707,-185.15657449,0.00017352,2]
[392531384,1761616192809,-164.65299022,0.00017352,2]
[392531385,1761616194459,-291.9699272,0.00017352,2]
[392531386,1761616198706,4445.8972541,0.00017034,2]
[392531387,1761616198727,554.1027459,0.00017034,2]
[392531388,1761616200704,-246.3546561,0.00017352,2]
[392531389,1761616205375,-267.37718175,0.00017352,2]
[392531390,1761616206684,1039.11585046,0.00017034,2]
[392531396,1761616209792,-192.25860318,0.00017352,2]
[392531397,1761616221698,5000.0,0.00017034,2]
[392531398,1761616223078,-211.31757432,0.00017352,2]
[392531428,1761616231793,-1208.42441462,0.00017352,2]
[392531527,1761616237649,-1835.15171957,0.00017352,2]
[392531528,1761616237658,-157.14521273,0.00017527,2]
[392531529,1761616237667,-553.13632061,0.00017638,2]
[392531530,1761616237676,-157.14521272,0.00017679,2]
[392531531,1761616237686,-403.5761775,0.00017723,2]
[392531532,1761616237695,-157.14521272,0.0001783,2]
[392531533,1761616237703,-1367.69779097,0.00017903,2]
[392531535,1761616237716,-665.39141242,0.00017903,2]
[392531536,1761616237726,-1200.0,0.0001798,2]
[392531537,1761616237735,-300.0,0.00017981,2]
[392531538,1761616237744,-300.0,0.00017981,2]
[392531539,1761616237753,-300.0,0.00017981,2]
[392531540,1761616237764,-300.0,0.00017981,2]
[392531541,1761616237773,-300.0,0.00017981,2]
[392531542,1761616237782,-9433.31553666,0.00017981,2]
[392531552,1761616240275,-3e-08,0.00017981,2]
[392531554,1761616242728,-6832.30844163,0.00017981,2]
[392531561,1761616246019,-5000.0,0.00017801,2]
[392531562,1761616246028,-500.0,0.0001798,2]
[392531563,1761616246039,-500.0,0.0001798,2]
[392531564,1761616246049,-155.00486333,0.0001798,2]
[392531565,1761616246058,-527.8005636,0.0001798,2]
[392531566,1761616246066,-500.0,0.0001798,2]
[392531567,1761616246297,-163.50517583,0.0001798,2]
[392531568,1761616246311,-336.49482417,0.0001798,2]
[392531569,1761616246324,-500.0,0.0001798,2]
[392531570,1761616246334,-500.0,0.0001798,2]
[392531571,1761616246344,-500.0,0.0001798,2]
[392531572,1761616246353,-383.81860396,0.0001798,2]
[392531573,1761616246362,-500.0,0.0001798,2]
[392531574,1761616246371,-466.47579681,0.0001798,2]
[392531575,1761616246383,-33.52420319,0.0001798,2]
[392531576,1761616246392,-500.0,0.0001798,2]
[392531577,1761616246402,-500.0,0.0001798,2]
[392531578,1761616246411,-500.0,0.0001798,2]
[392531579,1761616246421,-242.36893014,0.0001798,2]
[392531589,1761616374093,419.452658,0.00013699,2]
[392531590,1761616374434,2987.33874564,0.00016954,2]
[392531591,1761616374456,2681.70173256,0.00016954,2]
[392531593,1761616485911,4577.0,0.000301,120]
[392531594,1761616505573,166.7879768,0.00016875,2]
[392531600,1761616650354,5000.0,0.00017034,2]
[392531601,1761616654194,9722.35347966,0.0003,120]
[392531602,1761616658738,2151.52029064,0.00017034,2]
[392531603,1761616658927,1488.4265711,0.00017034,2]
[392531604,1761616673933,5000.0,0.00017034,2]
[392531605,1761616696590,3511.5834289,0.00017034,2]
[392531606,1761616696612,1488.4165711,0.00017034,2]
[392531607,1761616719180,5000.0,0.00017034,2]
[392531608,1761616742099,3511.5934289,0.00017034,2]
[392531609,1761616742122,1488.4065711,0.00017034,2]
[392531610,1761616765064,5000.0,0.00017034,2]
[392531611,1761616787820,3511.6034289,0.00017034,2]
[392531612,1761616794198,-196.00068804,0.00017034,2]
[392531613,1761616801900,-155.14049994,0.00017034,2]
[392531615,1761616826974,-155.46574009,0.00017034,2]
[392531616,1761616830072,-44.53425991,0.00017034,2]
[392531617,1761616830095,-225.45627366,0.00017034,2]
[392531618,1761616832852,-315.48774858,0.00017034,2]
[392531619,1761616836566,-300.0,0.00017034,2]
[392531620,1761616838981,-184.07000661,0.00017034,2]
[392531623,1761616971027,5000.0,0.0001699,2]
[392531624,1761616994804,5000.0,0.0001699,2]
[392531625,1761617017458,0.01,0.0001699,2]
[392531626,1761617017479,4999.99,0.0001699,2]
[392531627,1761617040850,5000.0,0.0001699,2]
[392531628,1761617064080,0.02,0.0001699,2]
[392531629,1761617064105,4999.98,0.0001699,2]
[392531630,1761617087004,2536.8047221,0.0001699,2]
[392531632,1761617146646,475.14,0.00030137,120]
[392531634,1761617221032,267.0,0.00030137,120]
[392531677,1761617431987,-547.42113783,0.00017203,2]
[392531678,1761617431997,-157.14521272,0.00017259,2]
[392531679,1761617432006,-2406.63484334,0.00017617,2]
[392531680,1761617432018,-2081.98631779,0.00017617,2]
[392531681,1761617432028,-403.5761775,0.0001762,2]
[392531682,1761617432038,-4488.62116111,0.00017688,2]
[392531683,1761617432047,-500.0,0.00017716,2]
[392531684,1761617432056,-500.0,0.00017716,2]
[392531685,1761617432065,-561.98798341,0.00017716,2]
[392531686,1761617432075,-300.0503574,0.00017716,2]
[392531687,1761617432084,-300.0,0.00017716,2]
[392531688,1761617432093,-300.0,0.00017716,2]
[392531689,1761617432102,-300.0,0.00017716,2]
[392531690,1761617432111,-1200.0,0.00017716,2]
[392531691,1761617432121,-300.0,0.00017716,2]
[392531692,1761617432130,-29.52410395,0.00017716,2]
[392531711,1761617437783,-500.0,0.00017716,2]
[392531713,1761617437793,-171.27813241,0.00017716,2]
[392531737,1761617438012,-328.72186759,0.00017716,2]
[392531739,1761617438021,-500.0,0.00017716,2]
[392531741,1761617438031,-500.0,0.00017716,2]
[392531743,1761617438040,-69.24869516,0.00017716,2]
[392531745,1761617438056,-430.75130484,0.00017716,2]
[392531746,1761617438065,-500.0,0.00017716,2]
[392531747,1761617438074,-500.0,0.00017716,2]
[392531748,1761617438083,-500.0,0.00017716,2]
[392531749,1761617438092,-400.0,0.00017716,2]
[392531750,1761617438101,-500.0,0.00017716,2]
[392531751,1761617438110,-500.0,0.00017716,2]
[392531752,1761617438119,-500.0,0.00017716,2]
[392531753,1761617438128,-500.0,0.00017716,2]
[392531754,1761617438137,-500.0,0.00017716,2]
[392531755,1761617438146,-500.0,0.00017716,2]
[392531756,1761617438156,-500.0,0.00017716,2]
[392531757,1761617438165,-500.0,0.00017716,2]
[392531758,1761617438174,-500.0,0.00017716,2]
[392531759,1761617438185,-169.42151548,0.00017716,2]
[392531760,1761617438198,-330.57848452,0.00017716,2]
[392531761,1761617438207,-500.0,0.00017716,2]
[392531762,1761617438216,-446.85203341,0.00017716,2]
[392531763,1761617438226,-500.0,0.00017716,2]
[392531764,1761617438235,-500.0,0.00017716,2]
[392531765,1761617438244,-500.0,0.00017716,2]
[392531766,1761617438254,-500.0,0.00017716,2]
[392531768,1761617438262,-500.0,0.00017716,2]
[392531770,1761617438273,-500.0,0.00017716,2]
[392531772,1761617438282,-500.0,0.00017716,2]
[392531773,1761617438291,-500.0,0.00017716,2]
[392531774,1761617438300,-500.0,0.00017716,2]
[392531775,1761617438309,-500.0,0.00017716,2]
[392531776,1761617438319,-371.66135013,0.00017716,2]
[392531777,1761617438328,-593.85687894,0.00017716,2]
[392531778,1761617438337,-500.0,0.00017716,2]
[392531779,1761617438346,-500.0,0.00017716,2]
[392531780,1761617438355,-500.0,0.00017716,2]
[392531781,1761617438365,-500.0,0.00017716,2]
[392531782,1761617438374,-500.0,0.00017716,2]
[392531783,1761617438383,-500.0,0.00017716,2]
[392531784,1761617438392,-500.0,0.00017716,2]
[392531785,1761617438402,-500.0,0.00017716,2]
[392531786,1761617438411,-500.0,0.00017716,2]
[392531787,1761617438420,-500.0,0.00017716,2]
[392531788,1761617438429,-500.0,0.00017716,2]
[392531789,1761617438439,-500.0,0.00017716,2]
[392531790,1761617438448,-500.0,0.00017716,2]
[392531791,1761617438458,-500.0,0.00017716,2]
[392531792,1761617438467,-500.0,0.00017716,2]
[392531793,1761617438477,-500.0,0.00017716,2]
[392531794,1761617438486,-500.0,0.00017716,2]
[392531795,1761617438497,-500.0,0.00017716,2]
[392531796,1761617438506,-500.0,0.00017716,2]
[392531797,1761617438515,-500.0,0.00017716,2]
[392531798,1761617438524,-500.0,0.00017716,2]
[392531799,1761617438534,-500.0,0.00017716,2]
[392531800,1761617438543,-500.0,0.00017716,2]
[392531801,1761617438552,-500.0,0.00017716,2]
[392531802,1761617438562,-500.0,0.00017716,2]
[392531803,1761617438572,-500.0,0.00017716,2]
[392531804,1761617438582,-500.0,0.00017716,2]
[392531805,1761617438591,-500.0,0.00017716,2]
[392531806,1761617438601,-244.0613914,0.00017716,2]
[392531807,1761617438613,-255.9386086,0.00017716,2]
[392531808,1761617438623,-388.58428872,0.00017716,2]
[392531820,1761617442985,-111.41571128,0.00017716,2]
[392531821,1761617442997,-247.03734741,0.00017716,2]
[392531822,1761617443011,-500.0,0.00017716,2]
[392531823,1761617443023,-535.35337787,0.00017716,2]
[392531824,1761617443036,-500.0,0.00017716,2]
[392531825,1761617443048,-500.0,0.00017716,2]
[392531826,1761617443060,-212.33689622,0.00017716,2]
[392531827,1761617443085,-287.66310378,0.00017716,2]
[392531828,1761617443098,-500.0,0.00017716,2]
[392531829,1761617443111,-500.0,0.00017716,2]
[392531830,1761617443122,-500.0,0.00017716,2]
[392531831,1761617443135,-500.0,0.00017716,2]
[392531832,1761617443147,-270.47589605,0.00017716,2]
[392531833,1761617443161,-50000.0,0.00017717,2]
[392531834,1761617443173,-1200.0,0.00017717,2]
[392531835,1761617443186,-508.09274881,0.00017718,2]
[392531836,1761617443206,-4488.62116111,0.00017759,2]
[392531837,1761617443217,-500.0,0.00017778,2]
[392531838,1761617443230,-500.0,0.00017778,2]
[392531839,1761617443244,-500.0,0.00017778,2]
[392531840,1761617443256,-500.0,0.0001778,2]
[392531841,1761617443269,-500.0,0.0001778,2]
[392531842,1761617443281,-500.0,0.0001778,2]
[392531843,1761617443293,-4488.62116111,0.00017829,2]
[392531844,1761617443305,-3788.4342136,0.00017841,2]
[392531845,1761617443316,-44409.39446273,0.00017841,2]
[392531846,1761617446117,-1075.6164,0.00017841,2]
[392531847,1761617446327,-1075.6164,0.00017841,2]
[392531871,1761618165335,1176.921641,0.00016687,2]
[392531872,1761618255861,233.68485643,0.00030136,120]
[392531882,1761618476961,-174.75342316,0.00017532,2]
[392531883,1761618476982,-452.70092133,0.00017532,2]
[392531888,1761618520792,169.83644401,0.000295,120]
[392531890,1761618551984,-312.0,0.0001727,2]
[392531891,1761618552006,-262.54565551,0.00017401,2]
[392531892,1761618553707,-273.92705957,0.00017401,2]
[392531893,1761618553731,-26.07294043,0.00017532,2]
[392531925,1761618632216,-139.1829547,0.00017532,2]
[392531927,1761618632226,-200.0,0.00017532,2]
[392531929,1761618632236,-154.63657166,0.00017559,2]
[392531931,1761618632246,-106.86447364,0.00017569,2]
[392531933,1761618632257,-67.88894951,0.00017569,2]
[392531935,1761618632266,-174.75342315,0.00017606,2]
[392531937,1761618632276,-1647.98577695,0.0001763,2]
[392531938,1761618632291,-1312.92376198,0.0001763,2]
[392531939,1761618632302,-874.63818407,0.0001763,2]
[392531942,1761618632327,-1297.58538331,0.0001763,2]
[392531975,1761618638040,-648.26641874,0.0001763,2]
[392531977,1761618638049,-322.51307998,0.00017639,2]
[392531979,1761618638060,-324.10606967,0.00017639,2]
[392531984,1761618638097,-553.38085035,0.00017639,2]
[392531986,1761618638107,-300.0,0.00017639,2]
[392531988,1761618638117,-300.0,0.00017639,2]
[392531989,1761618638126,-300.0,0.00017639,2]
[392531991,1761618638136,-300.0,0.00017639,2]
[392531992,1761618638146,-300.0,0.00017639,2]
[392531993,1761618638155,-1200.0,0.00017639,2]
[392531994,1761618638165,-1155.44963715,0.0001764,2]
[392531995,1761618640440,-3e-08,0.0001764,2]
[392531996,1761618642536,1075.7565137,0.00016661,2]
[392531998,1761618643473,-4625.94988784,0.0001764,2]
[392531999,1761618643483,-389.99479004,0.00017649,2]
[392532000,1761618643493,-500.0,0.00017649,2]
[392532001,1761618643502,-500.0,0.00017649,2]
[392532002,1761618643511,-288.20631988,0.00017649,2]
[392532003,1761618643521,-500.0,0.00017649,2]
[392532004,1761618643531,-600.0,0.00017649,2]
[392532005,1761618643541,-500.0,0.00017649,2]
[392532006,1761618643551,-500.0,0.00017649,2]
[392532007,1761618643561,-160.76133705,0.00017649,2]
[392532008,1761618643570,-500.0,0.00017649,2]
[392532009,1761618643580,-500.0,0.00017649,2]
[392532010,1761618643591,-170.59481976,0.00017649,2]
[392532011,1761618643600,-500.0,0.00017649,2]
[392532012,1761618643610,-500.0,0.00017649,2]
[392532013,1761618643620,-500.0,0.00017649,2]
[392532014,1761618643631,-500.0,0.00017649,2]
[392532015,1761618643640,-500.0,0.00017649,2]
[392532016,1761618643650,-500.0,0.00017649,2]
[392532017,1761618643660,-500.0,0.00017649,2]
[392532018,1761618643674,-500.0,0.00017649,2]
[392532019,1761618643685,-500.0,0.00017649,2]
[392532020,1761618643694,-500.0,0.00017649,2]
[392532021,1761618643703,-500.0,0.00017649,2]
[392532022,1761618643715,-629.35006894,0.00017649,2]
[392532023,1761618643725,-500.0,0.00017649,2]
[392532024,1761618643736,-500.0,0.00017649,2]
[392532025,1761618643746,-500.0,0.00017649,2]
[392532026,1761618643755,-500.0,0.00017649,2]
[392532027,1761618643765,-500.0,0.00017649,2]
[392532028,1761618643774,-5.16957194,0.00017649,2]
[392532030,1761618646325,-494.83042806,0.00017649,2]
[392532031,1761618646335,-500.0,0.00017649,2]
[392532032,1761618646346,-500.0,0.00017649,2]
[392532033,1761618646357,-500.0,0.00017649,2]
[392532034,1761618646368,-500.0,0.00017649,2]
[392532035,1761618646380,-500.0,0.00017649,2]
[392532036,1761618646390,-500.0,0.00017649,2]
[392532037,1761618646399,-500.0,0.00017649,2]
[392532038,1761618646409,-500.0,0.00017649,2]
[392532039,1761618646419,-500.0,0.00017649,2]
[392532040,1761618646428,-500.0,0.00017649,2]
[392532041,1761618646438,-184.69683294,0.00017649,2]
[392532042,1761618646448,-500.0,0.00017649,2]
[392532043,1761618646457,-500.0,0.00017649,2]
[392532044,1761618646467,-500.0,0.00017649,2]
[392532045,1761618646478,-500.0,0.00017649,2]
[392532046,1761618646487,-500.0,0.00017649,2]
[392532047,1761618646498,-500.0,0.00017649,2]
[392532048,1761618646507,-500.0,0.00017649,2]
[392532049,1761618646516,-500.0,0.00017649,2]
[392532051,1761618646526,-500.0,0.00017649,2]
[392532052,1761618646536,-500.0,0.00017649,2]
[392532054,1761618646548,-500.0,0.00017649,2]
[392532056,1761618646557,-500.0,0.00017649,2]
[392532057,1761618646566,-500.0,0.00017649,2]
[392532059,1761618646575,-500.0,0.00017649,2]
[392532061,1761618646584,-500.0,0.00017649,2]
[392532062,1761618646593,-500.0,0.00017649,2]
[392532064,1761618646603,-500.0,0.00017649,2]